Cogmind - Beta 13 X1 @@@ ROGUE MODE // 2023.12.07 @ 02:29:45 Player: IzRey Result: Destroyed by P-60 Hacker with Shock Rifle Performance ------------- Evolutions (3) 1500 Regions Visited (4) 800 Robots Destroyed (59) 295 Value Destroyed (1855) 1855 Prototype IDs (2) 40 Alien Tech Used (0) 0 Bonus (0) 0 TOTAL SCORE: 4490 Bonus ------- None Cogmind --------- Core Integrity 0/700 Matter 300/300 Energy 99/100 System Corruption 3% Temperature Cool (0) Movement Core (50) Location -7/Factory Parts ------- > --- POWER (1) -------- (None) > --- PROPULSION (3) --- (None) > --- UTILITY (5) ------ (None) > --- WEAPON (4) ------- (None) > --- INVENTORY (5) ---- Wheel Wheel Advanced Heat Sink Signal Interpreter Tractor Beam Peak State ------------ > --- POWER ------------ Improved Deuterium Engine > --- PROPULSION ------- Wheel Wheel Compact Wheel > --- UTILITY ---------- Improved Heat Sink High-capacity Storage Unit Improved Sensor Array Advanced Targeting Computer Hardened Light Armor Plating > --- WEAPON ----------- Autogun Autogun Gauss Rifle Chainsword > --- INVENTORY -------- Cooled Ion Engine Light Nuclear Core Light Nuclear Core Improved Heat Sink Advanced Heat Sink Disposable Heat Sink High-capacity Storage Unit Compact Matter Pod Signal Interpreter Improved Signal Interpreter Terrain Scanner Hacking Suite Corruption Screen Corruption Screen Tractor Beam Long-range Tractor Beam Heavy Particle Cannon Slug Cannon Scrap Shield Fragment [Rating: 36] Favorites ----------- Power Ion Engine Engine Ion Engine Power Core Light Nuclear Core Propulsion Wheel Treads Light Treads Leg Aluminum Leg Wheel Wheel Utility High-capacity Storage Unit Device Improved Heat Sink Storage High-capacity Storage Unit Processor Advanced Targeting Computer Protection Hardened Light Armor Plating Weapon Light Assault Rifle Energy Gun Small Laser Energy Cannon Heavy Particle Cannon Ballistic Gun Light Assault Rifle Ballistic Cannon Flak Cannon Launcher Advanced EMP Blaster Slashing Weapon Chainsword Build | -11 -10 -10 -8 -7 ------- Run | Jun Mat Sub Mat Fac Slots Evolved 6 | . . . 4 2 Power . | . . . . . Propulsion 1 | . . . . 1 Utility 3 | . . . 2 1 Weapon 2 | . . . 2 . Parts Attached 67 | 3 4 9 33 18 Power 4 | . . 1 2 1 Engine 3 | . . 1 1 1 Core 1 | . . . 1 . Reactor . | . . . . . Propulsion 18 | 3 . 3 7 5 Treads 2 | 1 . 1 . . Leg . | . . . . . Wheel 16 | 2 . 2 7 5 Hover . | . . . . . Flight . | . . . . . Utility 19 | . 2 3 8 6 Device 7 | . . 1 3 3 Storage 4 | . 1 1 1 1 Processor 2 | . . . . 2 Hackware . | . . . . . Protection 6 | . 1 1 4 . Artifact . | . . . . . Weapon 26 | . 2 2 16 6 Energy Gun 1 | . . . 1 . Energy Cannon 3 | . . . 2 1 Ballistic Gun 17 | . 2 2 11 2 Ballistic Cannon 2 | . . . 1 1 Launcher 1 | . . . 1 . Special Weapon . | . . . . . Impact Weapon . | . . . . . Slashing Weapon 2 | . . . . 2 Piercing Weapon . | . . . . . Special Melee Weapon . | . . . . . Unidentified Prototypes 2 | . . . 2 . Parts Lost 34 | . 1 4 14 15 Power 1 | . . 1 . . Propulsion 13 | . 1 1 4 7 Utility 9 | . . 2 3 4 Weapon 11 | . . . 7 4 Highest Loss Streak 5 | . 1 2 4 5 To Critical Strikes . | . . . . . Average Slot Usage (%) 84 | . 92 90 82 79 Engine 9 | . 14 12 8 6 Wheel 17 | . 21 24 12 15 Device 12 | . . 11 15 13 Storage 9 | . 14 12 9 6 Processor 1 | . . . . 5 Protection 5 | . 13 1 6 5 Energy Gun 2 | . 6 . 5 . Ballistic Gun 21 | . 22 25 21 18 Ballistic Cannon 1 | . . . 3 . Slashing Weapon 1 | . . . . 5 Naked Turns 81 | . . . . 81 Heaviest Build 74 | 13 31 31 74 70 Greatest Support 36 | 20 20 30 26 36 Greatest Overweight (x) 19 | . 3 3 19 6 Average Overweight (x) 2 | . 1 1 3 1 Largest Inventory Capacity 20 | 8 15 15 20 20 Average Capacity 16 | 8 10 13 18 17 Most Carried 20 | 7 10 15 18 20 Average Carried 13 | 6 8 11 14 16 Final Capacity 20 | 8 15 15 20 5 Final Carried 17 | 6 10 15 17 5 Class Distribution -------------------- 36% | Mutant 18% | Scavenger-Gunner 11% | Scavenger-Tank 10% | Tank 10% | Subdweller-Mutant 4% | Scavenger-Mutant 4% | Scavenger-Skirmisher 4% | Skirmisher Dominant Class ---------------- Mutant | -10/Materials Mutant | -10/Subcaves Tank | -8/Materials Scavenger-Gunner | -7/Factory Resources | -11 -10 -10 -8 -7 ----------- Run | Jun Mat Sub Mat Fac Matter Collected 2169 | 209 142 387 900 531 Remotely 256 | . . 236 20 . Salvage Created 2405 | . 196 163 1485 561 Parts 141 | . 16 11 81 33 Haulers Intercepted . | . . . . . Recyclers Shooed 3 | . . . 3 . Parts Field Recycled . | . . . . . Retrieved Matter . | . . . . . Parts Self-Destructed 8 | . . 8 . . Prevented . | . . . . . Kills | -11 -10 -10 -8 -7 ------- Run | Jun Mat Sub Mat Fac Combat Hostiles Destroyed 51 | . 6 4 27 14 Melee 7 | . . . . 7 Guns 40 | . 6 4 23 7 Cannons 3 | . . . 3 . AOE 1 | . . . 1 . Classes Destroyed 14 | . 2 1 8 3 Worker 3 | . . . 2 1 Builder 2 | . . . 1 1 Recycler 4 | . . . 4 . Mechanic 1 | . . . 1 . Operator 1 | . . . 1 . Watcher 1 | . . . . 1 Swarmer 14 | . 3 1 6 4 Grunt 22 | . 3 . 15 4 Brawler 1 | . . . 1 . Sentry 5 | . . . 4 1 Hunter 1 | . . . 1 . Programmer 1 | . . . . 1 Subdweller 3 | . . 3 . . Assembled 4 | . . . . 4 Best Kill Streak 7 | . 3 2 7 4 Combat Bots Only 6 | . 3 2 6 4 Max Kills in Single Turn 2 | . 1 1 2 1 Gunslinging . | . . . . . Exploded 1 | . . . 1 . Melee 1 | . . . . 1 Uniques/NPCs Destroyed . | . . . . . Combat | -11 -10 -10 -8 -7 -------- Run | Jun Mat Sub Mat Fac Damage Taken 4147 | . 190 674 1715 1568 Core 1096 | . 33 103 256 704 Absorbed by Shields . | . . . . . Core Remaining (%) 66 | 100 . 45 53 . Volleys Fired 193 | . 20 72 71 30 Largest 4 | . 2 2 4 3 Hottest 127 | . 60 50 127 94 Shots Fired 511 | . 40 136 255 80 Gun 478 | . 40 136 223 79 Cannon 33 | . . . 32 1 Launcher . | . . . . . Special . | . . . . . Kinetic 452 | . 34 136 202 80 Thermal 59 | . 6 . 53 . Explosive . | . . . . . Electromagnetic . | . . . . . Robot Hit Streak 37 | . 9 34 37 10 Robot Miss Streak 7 | . 3 1 7 4 Penetration Max 1 | . . . 1 1 Secondary Targets 2 | . . . 1 1 Max Gunslinging Chain 1 | . . . 1 1 Shots Hit Robots 293 | . 29 50 153 61 Core Hits 142 | . 11 9 91 31 Critical Kills 2 | . . 1 1 . Critical Parts Destroyed . | . . . . . Critical Strikes 2 | . . 1 1 . Destroy 2 | . . 1 1 . Melee Attacks 39 | . . . . 39 Impact . | . . . . . Slashing 39 | . . . . 39 Piercing . | . . . . . Sneak Attacks 3 | . . . . 3 Combat Hostiles . | . . . . . Follow-up Attacks . | . . . . . Damage Inflicted 4191 | . 308 187 2261 1435 Guns 3032 | . 308 187 1741 796 Cannons 408 | . . . 408 . Explosions 112 | . . . 112 . Melee 639 | . . . . 639 Ramming . | . . . . . Kinetic 3042 | . 255 187 1804 796 Thermal 398 | . 53 . 345 . Explosive 112 | . . . 112 . Electromagnetic . | . . . . . Impact . | . . . . . Slashing 639 | . . . . 639 Piercing . | . . . . . Highest Corruption 3 | . . . . 3 Average Corruption 2 | . . . . 2 Corruption Purged . | . . . . . Corruption Blocked . | . . . . . Overload Shots . | . . . . . Overflow Damage 93 | . . . 55 38 Projectiles . | . . . . . Explosions 55 | . . . 55 . Melee 38 | . . . . 38 Knockbacks 16 | . . . 16 . Impact . | . . . . . Kinetic 15 | . . . 15 . Secondary 1 | . . . 1 . Self-Inflicted Damage 84 | . . . 84 . Shots 1 | . . . 1 . Rammed 1 | . . . . 1 Targets Rammed 1 | . . . . 1 Kicked . | . . . . . Crushed . | . . . . . Highest Temperature 136 | . 45 . 136 12 Average Temperature 24 | . 12 . 31 4 Received Heat Transfer 1042 | . 93 24 558 367 Siege Activations . | . . . . . Robots Corrupted . | . . . . . Combat Hostiles . | . . . . . Parts Fried . | . . . . . Impact Corruptions . | . . . . . Robots Melted . | . . . . . Combat Hostiles . | . . . . . Parts Melted . | . . . . . Heat Transferred 900 | . 125 . 775 . Parts Sabotaged . | . . . . . Parts Stolen . | . . . . . Parts Stripped . | . . . . . Power Chain Reactions . | . . . . . Missiles Intercepted . | . . . . . Alert | -11 -10 -10 -8 -7 ------- Run | Jun Mat Sub Mat Fac Peak Influence 425 | . 165 . 425 370 Initial 142 | . . . . 142 Average 175 | . 117 . 165 201 Maximum Alert Level 2 | . . . 2 1 Low Security (%) 61 | 100 100 . 59 52 Level 1 35 | . . . 33 47 Level 2 3 | . . . 7 . Level 3 . | . . . . . Level 4 . | . . . . . Level 5 . | . . . . . High Security . | . . . . . Max Security . | . . . . . Squads Dispatched 9 | . . . 3 6 Investigation . | . . . . . Extermination 2 | . . . . 2 Reinforcement 7 | . . . 3 4 Assault . | . . . . . Garrison . | . . . . . Intercept . | . . . . . Searches Triggered . | . . . . . Construction Impeded 1 | . . . . 1 Haulers Reinforced . | . . . . . Active Scanning Responses . | . . . . . Cargo Convoy Interrupts 1 | . . . . 1 Stealth | -11 -10 -10 -8 -7 --------- Run | Jun Mat Sub Mat Fac Distress Signals 3 | . . . 3 . Communications Jammed . | . . . . . Distress Signals . | . . . . . Times Spotted 101 | . 8 8 41 44 Peak Tracking Total 15 | . 4 4 8 15 Tactical Retreats 12 | . . . 3 9 Traps | -11 -10 -10 -8 -7 ------- Run | Jun Mat Sub Mat Fac Traps Triggered 4 | . . . 1 3 Indirectly . | . . . . . Trap Hack Attempts . | . . . . . Triggered . | . . . . . Disarmed . | . . . . . Reprogrammed . | . . . . . Reused . | . . . . . Traps Extracted . | . . . . . Installed . | . . . . . Triggered . | . . . . . Machines | -11 -10 -10 -8 -7 ---------- Run | Jun Mat Sub Mat Fac Machines Disabled 4 | . . . 3 1 Max in Single Turn 2 | . . . 2 1 Machines Repaired . | . . . . . Machines Sabotaged . | . . . . . Overloaded Fab Kills . | . . . . . Hacking | -11 -10 -10 -8 -7 --------- Run | Jun Mat Sub Mat Fac Machines Accessed 10 | . 4 . 3 3 Terminals 9 | . 3 . 3 3 Fabricators . | . . . . . Repair Stations . | . . . . . Recycling Units 1 | . 1 . . . Scanalyzers . | . . . . . Garrison Access . | . . . . . Total Hacks 27 | . 12 . 10 5 Successful 11 | . 4 . 6 1 Failed 16 | . 8 . 4 4 Catastrophic 2 | . . . . 2 Database Lockouts . | . . . . . Manual 11 | . 5 . 4 2 Terminals 23 | . 8 . 10 5 Fabricators . | . . . . . Repair Stations . | . . . . . Recycling Units 4 | . 4 . . . Scanalyzers . | . . . . . Garrison Access . | . . . . . Terminal Hacks 6 | . 1 . 4 1 Branch Access Points 1 | . . . 1 . Terminal Index 1 | . 1 . . . Unreport Threat 2 | . . . 1 1 Hauler Manifests 1 | . . . 1 . Zone Layout 1 | . . . 1 . Fabricator Hacks . | . . . . . Repair Station Hacks . | . . . . . Recycling Unit Hacks 1 | . 1 . . . Retrieve Components 1 | . 1 . . . Scanalyzer . | . . . . . Garrison Access Hacks . | . . . . . Unauthorized Hacks 4 | . 2 . 2 . Terminals 4 | . 2 . 2 . Botnet 4 | . 2 . 2 . Fabricators . | . . . . . Repair Stations . | . . . . . Recycling Units . | . . . . . Scanalyzers . | . . . . . Garrison Access . | . . . . . Data Cores Recovered . | . . . . . Used . | . . . . . Hacking Detections 7 | . 3 . 2 2 Full Trace Events . | . . . . . Feedback Events . | . . . . . Feedback Blocked . | . . . . . Robot Schematics Acquired . | . . . . . Robots Built . | . . . . . Authchips . | . . . . . Time . | . . . . . Total Robot Build Rating . | . . . . . Part Schematics Acquired . | . . . . . Parts Built . | . . . . . Authchips . | . . . . . Time . | . . . . . Total Part Build Rating . | . . . . . Parts Repaired . | . . . . . Time . | . . . . . Parts Recycled . | . . . . . Recycled Matter . | . . . . . Retrieved Matter . | . . . . . Retrieved Components . | . . . . . Parts Scanalyzed . | . . . . . Part Schematics Acquired . | . . . . . Parts Damaged . | . . . . . Bothacking | -11 -10 -10 -8 -7 ------------ Run | Jun Mat Sub Mat Fac Used RIF Installer . | . . . . . Robots Hacked . | . . . . . Non-combat . | . . . . . Combat . | . . . . . Robot Hacks Applied . | . . . . . Relay Couplers Released . | . . . . . Fabnet Peak Effective % . | . . . . . Robots Rewired . | . . . . . Allies Hacked . | . . . . . Hacks Repelled . | . . . . . Allies | -11 -10 -10 -8 -7 -------- Run | Jun Mat Sub Mat Fac Total Allies . | . . . . . Largest Group . | . . . . . Highest-Rated Group . | . . . . . Highest-Rated Ally . | . . . . . Total Orders . | . . . . . Ally Attacks . | . . . . . Total Damage . | . . . . . Kills . | . . . . . Allies Corrupted . | . . . . . Allies Melted . | . . . . . Intel | -11 -10 -10 -8 -7 ------- Run | Jun Mat Sub Mat Fac Robot Analysis Total . | . . . . . Derelict Logs Recovered 1 | . . 1 . . Drone Launches . | . . . . . Drone Recoveries . | . . . . . Exploration | -11 -10 -10 -8 -7 ------------- Run | Jun Mat Sub Mat Fac Turns Passed 3763 | 6 276 1179 1211 1091 Spaces Moved 2447 | 2 178 828 595 844 Core 266 | . . . 5 261 Treads . | . . . . . Legs . | . . . . . Wheels 2181 | 2 178 828 590 583 Hover . | . . . . . Flight . | . . . . . Fastest Speed 50 | 80 80 95 105 50 Average Speed 111 | 80 101 110 141 95 Slowest Speed 1000 | 80 125 125 1000 170 Overloaded Moves . | . . . . . Propulsion Burnouts . | . . . . . Robots Hopped . | . . . . . Cave-ins Triggered . | . . . . . Exploration Rate (%) 29 | 2 46 14 59 26 Regions Visited 4 Branch Regions 1 Pre-discovered Areas . | . . . . . Known Exits Taken . | . . . . . Unknown Exits Taken 4 | 1 1 1 1 . Scrap Searched 11 | . . 11 . . Spaces Dug 21 | . . 4 2 15 Terrain Destroyed 52 | . . 4 31 17 Melee 15 | . . . . 15 Projectile 9 | . . 4 3 2 AOE 28 | . . . 28 . Terrain Rammed . | . . . . . Walls Destroyed . | . . . . . Machines Disabled . | . . . . . Actions | -11 -10 -10 -8 -7 --------- Run | Jun Mat Sub Mat Fac Total 3042 | 6 236 976 807 1017 Wait 202 | . 25 40 74 63 Move 2443 | 1 177 827 594 844 Hop . | . . . . . Pick Up 54 | . 6 17 23 8 Fast Attach 17 | . 1 2 7 7 Attach 31 | 2 . 5 18 6 Detach 9 | 2 . 3 3 1 Swap 19 | 1 3 2 8 5 Drop 25 | . 4 8 8 5 Fire 193 | . 20 72 71 30 Melee 39 | . . . . 39 Ram 1 | . . . . 1 Kick . | . . . . . Crush . | . . . . . Escape Stasis 8 | . . . . 8 Rewire . | . . . . . Trap . | . . . . . Miscellaneous 1 | . . . 1 . Route ------- -11/Junkyard -10/Materials (discovered 2 exits: [*Min] / [*Sub]) -10/Subcaves -8/Materials (discovered 4 exits: *Fac x2 / Sto x2) -7/Factory History --------- Turn | Location | Event 6 | -11/Junkyard | Discovered new exit (range 1) 7 | -11/Junkyard | Entered Materials 171 | -10/Materials | Discovered new exit (range 9) 271 | -10/Materials | Discovered new exit (range 11) 283 | -10/Materials | Entered Subcaves 293 | -10/Subcaves | Learned Materials terminal intel 324 | -10/Subcaves | Build established: Mutant 354 | -10/Subcaves | Discovered new exit (range 9) 481 | -10/Subcaves | Core integrity fell below 50% 544 | -10/Subcaves | A swath of the cavern ceiling suddenly collapsed 1140 | -10/Subcaves | Build established: Subdweller-Mutant 1462 | -10/Subcaves | Entered Materials 1462 | -8/Materials | Evolved 4 slots: Utility x2, Weapon x2 1463 | -8/Materials | Loaded intel: 12 terminal locations 1520 | -8/Materials | Build established: Mutant 1841 | -8/Materials | Discovered new exit (range 8) 1894 | -8/Materials | Build established: Tank 1989 | -8/Materials | Lost 4 parts (1n1u2w) 2330 | -8/Materials | Lost 4 parts (1n1u2w) 2457 | -8/Materials | Identified exit to Storage 2598 | -8/Materials | Build established: Scavenger-Tank 2649 | -8/Materials | Discovered new exit (range 13) 2673 | -8/Materials | Entered Factory 2673 | -7/Factory | Evolved 2 slots: Propulsion x1, Utility x1 3081 | -7/Factory | Lost 3 parts (3n) 3517 | -7/Factory | Build established: Scavenger-Gunner 3569 | -7/Factory | Lost 3 parts (1n1u1w) 3608 | -7/Factory | Cargo convoy interrupted 3612 | -7/Factory | Released all parts (7) 3641 | -7/Factory | Lost 5 parts (2n2u1w) 3713 | -7/Factory | Core integrity fell below 50% 3756 | -7/Factory | Core integrity fell below 20% 3764 | -7/Factory | Destroyed by P-60 Hacker with Shock Rifle Last Messages --------------- 03645_ K-01 Serf cleans the Power Conduit. 03650_ Acquired 45 matter. 03683_ Slammed into P-60 Hacker. 03714_ ECM Suite destroyed. 03717_ Connecting with Terminal... 03717_ Current location identified: Factory 03723_ O-16 Technician: "IFF HANDSHAKE FAILED. SECURING TERMINAL." 03731_ O-16 Technician uses terminal to summon reinforcements. 03731_ ALERT: Hostiles spotted, dispatching reinforcements to Terminal F020. 03731_ O-16 Technician locks terminal. 03742_ Connecting with Terminal... >>Alert(Purge) Purged threat record, alert level lowered. 03750_ Connecting with Terminal... 03755_ Nuclear Reactor explodes. 03755_ S-27 Virus destroyed. 03755_ Nuclear Reactor explodes. 03755_ S-27 Virus destroyed. 03757_ ALERT: Rogue bot located, Programmers report to Factory Zone 8S. Map ----- +----------------------------------------------------+ | | | | | | | | | | | | | | | ??????????????????????????####### ########???? | | ??????????????????????????# #???? | | ??????????????????????????# ! #???? | | ??????????????????????????# [ #???? | | ??????????????????????????# """ = #???? | | ??????????????????????????# """ [ ""#???? | | ??????????????????????????# """ T"#???? | | ??????????????????????????# ! ""#???? | | ??????????????????????????# p #???? | | ????????????????????????#####+# ######## | | ????????????????????????# p # | | ????????????????????????# ^ ! ""# | | ????????????????????????# !! """" # T"# | | ????????????????????????# !! """" # /// ""# | | ????????????????????????# ! """" # // # | | ????????????????????????# """" ##! // # | | ????????????????????????# """" ## ! !# | | ????????????????????????# """" ## # | | ????????????????????????#@ #####/###### | | ????????????????????????# #??? | | ????????????????????????# #### | | ????????????????????????/g | | ????????????????????????# | | ????????????????????????#"" | | ????????????????????????#"F """ """ """ """ """ | | ????????????????????????#"" """ """ """ """ """ | | ????????????????????????#"" """?""" """ """ """ | | ??????????????????????????? "???"" "" "" "" | | ??????????????????????????? "?????? "" "" "" | | ??????????????????????????? ???????? ? | | ????????????????????????????"" """???????" ?"" """ | | ?????????????????????????????" "?????????" ??" """ | | ?????????????????????????????????????????????" "?" | | ?????????????????????????????????????????????" ?" | | ?????????????????????????????????????????????? ??" | | ?????????????????????????????????????????????? ?? | | ?????????????????????????????????????????????? ??? | | ?????????????????????????????????????????????????? | | ?????????????????????????????????????????????????? | | ?????????????????????????????????????????????????? | | ?????????????????????????????????????????????????? | | ?????????????????????????????????????????????????? | | ?????????????????????????????????????????????????? | +----------------------------------------------------+ Best States ------------- Heat Dissipation 48 Energy Generation 16 Energy Capacity 290 Matter Stores 300 Matter Capacity 300 Sight Range 16 Robot Scan Range 15 Terrain Scan Range 14 Terrain Scan Density 10 ECM Strength 1 Armor Coverage 800 Evasion (%) 50 Targeting Accuracy 8 Item Schematics ----------------- None Robot Schematics ------------------ None Fabricated ------------ Nothing Alien Tech Used ----------------- None Achievements -------------- None Challenges ------------ None Game ------ Seed BehemothBiomechanicalPlating Manual? 0 Play Time 00:53:24 Cumulative 529.0 hours Start 2023.12.06 @ 18:58:05 End 2023.12.07 @ 02:29:45 Sessions 3 Manual Loads 0 Difficulty Rogue Special Mode None Game No. 65 Rogue 48 Adventurer 17 Explorer 0 Win Type - Total 1 Types 1/0/0/0/0/0/0/0/0 Lore% 51 Gallery% 61 Achievement% 50 Wizard Run 0 Options --------- ASCII 0 Keyboard 1 Movement Vi Keybinds 0 Fullscreen 1 Font 18/SmallcapsGlow Map View 76x50 Tactical HUD 1 Map Filters NONE Filters NONE Steam 1 RUN: 079ed725-7a6e-4e3f-ad45-ecceab7f5d77